bitfinex/quotes_BTCUSD_20251009
["timestamp","ask_amount","ask_price","bid_price","bid_amount"]
[1759973460163,4.65368351,122600.0,122590.0,0.00106404]
[1759973460427,5.31835656,122600.0,122590.0,0.00106404]
[1759973461184,5.31835656,122600.0,122590.0,1e-08]
[1759973461185,5.76810083,122600.0,122590.0,1e-08]
[1759973461399,6.02076311,122600.0,122590.0,1e-08]
[1759973461620,5.78992311,122600.0,122590.0,1e-08]
[1759973461842,6.02076311,122600.0,122590.0,1e-08]
[1759973463987,6.10564311,122600.0,122590.0,1e-08]
[1759973464684,6.10563292,122600.0,122590.0,1e-08]
[1759973470026,5.78991292,122600.0,122590.0,1e-08]
[1759973470255,4.46057374,122600.0,122590.0,1e-08]
[1759973470434,5.85297064,122600.0,122590.0,1e-08]
[1759973470933,6.10567292,122600.0,122590.0,1e-08]
[1759973471474,5.99897064,122600.0,122590.0,1e-08]
[1759973471630,6.10567292,122600.0,122590.0,1e-08]
[1759973472531,5.85297064,122600.0,122590.0,1e-08]
[1759973472763,6.10567292,122600.0,122590.0,1e-08]
[1759973474135,5.85567292,122600.0,122590.0,1e-08]
[1759973474303,5.85564218,122600.0,122590.0,1e-08]
[1759973474942,4.50448072,122600.0,122590.0,1e-08]
[1759973475169,4.84581544,122600.0,122590.0,1e-08]
[1759973475381,5.82624503,122600.0,122590.0,1e-08]
[1759973475793,5.8338132,122600.0,122590.0,1e-08]
[1759973476001,5.82624503,122600.0,122590.0,1e-08]
[1759973476365,5.83381355,122600.0,122590.0,1e-08]
[1759973476571,4.50447437,122600.0,122590.0,1e-08]
[1759973476780,5.83381359,122600.0,122590.0,1e-08]
[1759973477633,5.85563587,122600.0,122590.0,1e-08]
[1759973478547,5.85563675,122600.0,122590.0,1e-08]
[1759973480372,5.62475675,122600.0,122590.0,1e-08]
[1759973480578,5.85563675,122600.0,122590.0,1e-08]
[1759973481131,5.53987675,122600.0,122590.0,1e-08]
[1759973481329,5.85559675,122600.0,122590.0,1e-08]
[1759973483956,5.53987675,122600.0,122590.0,1e-08]
[1759973484158,5.85559675,122600.0,122590.0,1e-08]
[1759973484561,5.53987675,122600.0,122590.0,1e-08]
[1759973484798,5.85559675,122600.0,122590.0,1e-08]
[1759973484998,5.53987675,122600.0,122590.0,1e-08]
[1759973485202,4.90811298,122600.0,122590.0,1e-08]
[1759973485409,5.13138354,122600.0,122590.0,1e-08]
[1759973487892,5.79605313,122600.0,122590.0,1e-08]
[1759973488302,5.81787541,122600.0,122590.0,1e-08]
[1759973489958,5.81789239,122600.0,122590.0,1e-08]
[1759973491422,5.81789119,122600.0,122590.0,1e-08]
[1759973492471,5.81789084,122600.0,122590.0,1e-08]
[1759973493303,5.58705084,122600.0,122590.0,1e-08]
[1759973493511,5.81789084,122600.0,122590.0,1e-08]
[1759973496081,5.58705084,122600.0,122590.0,1e-08]
[1759973496364,5.13139897,122600.0,122590.0,1e-08]
[1759973496514,4.81567897,122600.0,122590.0,1e-08]
[1759973496942,5.04651897,122600.0,122590.0,1e-08]
[1759973497106,4.81567897,122600.0,122590.0,1e-08]
[1759973497307,5.04651897,122600.0,122590.0,1e-08]
[1759973497717,4.81567897,122600.0,122590.0,1e-08]
[1759973497925,5.04651897,122600.0,122590.0,1e-08]
[1759973498362,4.38184938,122600.0,122590.0,1e-08]
[1759973498563,5.04651897,122600.0,122590.0,1e-08]
[1759973499968,5.04651747,122600.0,122590.0,1e-08]
[1759973500361,4.81567747,122600.0,122590.0,1e-08]
[1759973500569,5.04651747,122600.0,122590.0,1e-08]
[1759973502761,4.81567747,122600.0,122590.0,1e-08]
[1759973502962,5.04651747,122600.0,122590.0,1e-08]
[1759973504443,4.22941094,122600.0,122590.0,0.02810001]
[1759973504670,4.34569686,122600.0,122590.0,0.05766301]
[1759973504896,4.90725339,122600.0,122590.0,0.05766301]
[1759973505110,4.90725339,122600.0,122590.0,0.05128001]
[1759973505346,4.45489686,122600.0,122590.0,0.05128001]
[1759973505584,4.68569686,122600.0,122590.0,0.05128001]
[1759973508830,4.71592339,122600.0,122590.0,1e-08]
[1759973509072,5.48553732,122600.0,122590.0,1e-08]
[1759973509335,5.73148341,122600.0,122590.0,1e-08]
[1759973509784,5.06681382,122600.0,122590.0,1e-08]
[1759973515359,4.83601382,122600.0,122590.0,1e-08]
[1759973516049,5.06681382,122600.0,122590.0,1e-08]
[1759973516491,4.83601382,122600.0,122590.0,1e-08]
[1759973516949,5.06681382,122600.0,122590.0,1e-08]
[1759973517841,4.83601382,122600.0,122590.0,1e-08]
[1759973518258,5.06681382,122600.0,122590.0,1e-08]
[1759973519132,4.83601382,122600.0,122590.0,1e-08]
[1759973519346,5.50068341,122600.0,122590.0,1e-08]
[1759973519560,5.73148341,122600.0,122590.0,1e-08]
[1759973520435,5.7390595,122600.0,122590.0,1e-08]
[1759973520657,5.7692114,122600.0,122590.0,1e-08]
[1759973521710,5.16755953,122600.0,122590.0,1e-08]
[1759973521917,5.0937637,122600.0,122590.0,1e-08]
[1759973522121,5.08618761,122600.0,122590.0,1e-08]
[1759973522543,5.11558332,122600.0,122590.0,1e-08]
[1759973523116,4.79994332,122600.0,122590.0,1e-08]
[1759973523288,5.08618761,122600.0,122590.0,1e-08]
[1759973523735,5.10800989,122600.0,122590.0,1e-08]
[1759973524736,5.08700989,122600.0,122590.0,1e-08]
[1759973524982,5.10600989,122600.0,122590.0,1e-08]
[1759973525188,5.09600989,122600.0,122590.0,1e-08]
[1759973525401,5.07700989,122600.0,122590.0,1e-08]
[1759973525588,5.09400989,122600.0,122590.0,1e-08]
[1759973526005,5.08500989,122600.0,122590.0,1e-08]
[1759973526378,5.08900989,122600.0,122590.0,1e-08]
[1759973528775,4.85824989,122600.0,122590.0,1e-08]
[1759973528982,5.08904989,122600.0,122590.0,1e-08]
[1759973529490,5.08504989,122600.0,122590.0,1e-08]
[1759973529942,5.07704989,122600.0,122590.0,1e-08]
[1759973530170,5.08604989,122600.0,122590.0,1e-08]
[1759973530591,5.09362003,122600.0,122590.0,1e-08]
[1759973530799,5.11662003,122600.0,122590.0,1e-08]
[1759973530980,5.0709038,122600.0,122590.0,1e-08]
[1759973531222,5.38905111,122600.0,122590.0,1e-08]
[1759973531431,5.38005111,122600.0,122590.0,1e-08]
[1759973531641,5.39205111,122600.0,122590.0,1e-08]
[1759973531757,5.39605111,122600.0,122590.0,1e-08]
[1759973532404,5.39205111,122600.0,122590.0,1e-08]
[1759973532614,5.40205111,122600.0,122590.0,1e-08]
[1759973533016,5.39005111,122600.0,122590.0,1e-08]
[1759973533476,5.09937111,122600.0,122590.0,1e-08]
[1759973533657,5.41505111,122600.0,122590.0,1e-08]
[1759973534450,5.41503373,122600.0,122590.0,1e-08]
[1759973537187,5.11959685,122600.0,122590.0,1e-08]
[1759973537601,4.80391685,122600.0,122590.0,1e-08]
[1759973537830,5.11959685,122600.0,122590.0,1e-08]
[1759973538329,4.80391685,122600.0,122590.0,1e-08]
[1759973538759,4.78209457,122600.0,122590.0,1e-08]
[1759973538954,5.09777457,122600.0,122590.0,1e-08]
[1759973539588,4.78209457,122600.0,122590.0,1e-08]
[1759973539800,5.09777457,122600.0,122590.0,1e-08]
[1759973540227,4.78209457,122600.0,122590.0,1e-08]
[1759973540429,5.09777457,122600.0,122590.0,1e-08]
[1759973542168,5.11959685,122600.0,122590.0,1e-08]
[1759973542373,4.80391685,122600.0,122590.0,1e-08]
[1759973542579,4.88879685,122600.0,122590.0,1e-08]
[1759973542784,5.11959685,122600.0,122590.0,1e-08]
[1759973543633,5.00533022,122600.0,122590.0,1e-08]
[1759973543851,5.09021022,122600.0,122590.0,1e-08]
[1759973544298,5.07508152,122600.0,122590.0,1e-08]
[1759973544551,5.09021689,122600.0,122590.0,1e-08]
[1759973545964,5.00533689,122600.0,122590.0,1e-08]
[1759973548320,5.00534408,122600.0,122590.0,1e-08]
[1759973550200,4.74439218,122600.0,122590.0,1e-08]
[1759973550410,4.97515218,122600.0,122590.0,1e-08]
[1759973551463,4.74439218,122600.0,122590.0,1e-08]
[1759973551678,4.95136218,122600.0,122590.0,1e-08]
[1759973551886,4.97478218,122600.0,122590.0,1e-08]
[1759973555952,4.97452218,122600.0,122590.0,1e-08]
[1759973556486,4.38364842,122600.0,122590.0,1e-08]
[1759973556684,4.97452218,122600.0,122590.0,1e-08]
[1759973559533,4.95136218,122600.0,122590.0,0.01598001]
[1759973560157,4.95136218,122600.0,122590.0,1e-08]
[1759973560616,4.97452218,122600.0,122590.0,1e-08]
[1759973561562,4.38364842,122600.0,122590.0,1e-08]
[1759973561762,4.97452218,122600.0,122590.0,1e-08]
[1759973562388,4.97448218,122600.0,122590.0,1e-08]
[1759973562787,4.95132218,122600.0,122590.0,0.01656001]
[1759973563200,4.95132218,122600.0,122590.0,1e-08]
[1759973563621,4.72060218,122600.0,122590.0,0.02873001]
[1759973563829,4.95132218,122600.0,122590.0,0.02873001]
[1759973564437,4.72060218,122600.0,122590.0,0.02873001]
[1759973564642,4.95132218,122600.0,122590.0,0.01217001]
[1759973565733,4.74556218,122600.0,122590.0,1e-08]
[1759973565947,4.76738446,122600.0,122590.0,1e-08]
[1759973566376,4.99810446,122600.0,122590.0,1e-08]
[1759973568786,4.79753636,122600.0,122590.0,1e-08]
[1759973568987,5.02825636,122600.0,122590.0,1e-08]
[1759973570470,5.02825023,122600.0,122590.0,1e-08]
[1759973570700,5.33125458,122600.0,122590.0,1e-08]
[1759973571358,5.0358171,122600.0,122590.0,1e-08]
[1759973571924,5.03581442,122600.0,122590.0,1e-08]
[1759973575886,5.03581442,122600.0,122560.0,0.0002]
[1759973575887,0.19332396,122570.0,122560.0,0.0002]
[1759973576112,0.53333727,122560.0,122550.0,0.001]
[1759973576315,1.51090537,122560.0,122550.0,0.00104989]
[1759973576672,1.53541724,122560.0,122550.0,0.00104989]
[1759973576873,1.61263204,122560.0,122550.0,0.00104989]
[1759973577305,1.61363204,122560.0,122550.0,0.00104989]
[1759973577933,1.61263204,122560.0,122550.0,0.00104989]
[1759973578138,1.59751175,122560.0,122550.0,0.00104989]
[1759973578348,1.60951175,122560.0,122550.0,0.00104989]
[1759973579006,1.62461656,122560.0,122550.0,0.00104989]
[1759973579209,1.61351175,122560.0,122550.0,0.00104989]
[1759973580270,0.16321201,122540.0,122530.0,0.16456612]
[1759973580518,0.50312407,122540.0,122530.0,0.16471623]
[1759973580726,0.79860095,122540.0,122530.0,0.21658623]
[1759973580937,0.82311533,122540.0,122530.0,0.21658623]
[1759973581141,0.82311533,122540.0,122530.0,0.19344623]
[1759973581376,0.84807533,122540.0,122530.0,0.16471623]
[1759973581570,0.85807533,122540.0,122530.0,0.16471623]
[1759973582077,0.95290411,122540.0,122530.0,0.16776026]
[1759973582460,1.18366411,122540.0,122530.0,0.16776026]
[1759973582708,0.63450723,122540.0,122530.0,0.18432026]
[1759973582913,0.86526723,122540.0,122530.0,0.18432026]
[1759973583088,1.18566411,122540.0,122530.0,0.16776026]
[1759973583325,0.95490411,122540.0,122530.0,0.16776026]
[1759973583526,1.18566411,122540.0,122530.0,0.16776026]
[1759973583755,1.20903422,122540.0,122530.0,0.16776026]
[1759973583964,1.97080374,122540.0,122530.0,0.16776026]
[1759973585128,1.98587129,122540.0,122530.0,0.16776026]
[1759973585739,1.75511129,122540.0,122530.0,0.16776026]
[1759973586626,1.98587129,122540.0,122530.0,0.16776026]
[1759973586830,1.32046079,122540.0,122530.0,0.16776026]
[1759973587234,1.98587129,122540.0,122530.0,0.16776026]
[1759973588118,2.07079129,122540.0,122530.0,0.16776026]
[1759973588574,2.07077672,122540.0,122530.0,0.16776026]
[1759973592432,0.53337723,122530.0,122520.0,0.2000945]
[1759973592651,2.24911555,122530.0,122520.0,0.2000945]
[1759973592864,2.24911555,122530.0,122510.0,0.01213381]
[1759973592865,0.16323865,122520.0,122510.0,0.01213381]
[1759973593032,1.85579697,122520.0,122510.0,0.01228392]
[1759973593240,1.89423697,122520.0,122510.0,0.01228392]
[1759973593907,1.91875599,122520.0,122510.0,0.01228392]
[1759973594284,1.94890789,122520.0,122510.0,0.01228392]
[1759973594489,1.95890789,122520.0,122510.0,0.01228392]
[1759973595298,1.96090789,122520.0,122510.0,0.01228392]
[1759973595522,1.73010789,122520.0,122510.0,0.01228392]
[1759973595730,1.81502789,122520.0,122510.0,0.01228392]
[1759973595937,1.73010789,122520.0,122510.0,0.01228392]
[1759973596148,1.73010789,122520.0,122500.0,5.0044]
[1759973596149,0.53340387,122510.0,122500.0,5.0044]
[1759973596350,0.53340387,122510.0,122500.0,5.05582]
[1759973596351,1.26683751,122510.0,122500.0,5.05582]
[1759973596563,1.51293751,122510.0,122500.0,5.03244]
[1759973596768,1.55926968,122510.0,122500.0,5.0044]
[1759973597180,1.58942158,122510.0,122500.0,5.0044]
[1759973597383,1.38306459,122510.0,122500.0,5.0044]
[1759973597588,1.70898459,122510.0,122500.0,5.0044]
[1759973597936,1.39306459,122510.0,122500.0,5.0044]
[1759973598144,1.45487242,122510.0,122500.0,5.0044]
[1759973598364,1.63254052,122510.0,122500.0,5.0044]
[1759973598585,1.65572052,122510.0,122500.0,5.0044]
[1759973598818,1.70892259,122510.0,122500.0,5.0044]
[1759973599029,1.71092259,122510.0,122500.0,5.0044]
[1759973599673,2.37633309,122510.0,122500.0,5.0044]
[1759973599872,2.37637309,122510.0,122500.0,5.0044]
[1759973600028,1.71096259,122510.0,122500.0,5.0044]
[1759973600232,2.37637309,122510.0,122500.0,5.0044]
[1759973600461,2.37437309,122510.0,122500.0,5.0044]
[1759973600884,1.69896259,122510.0,122500.0,5.0044]
[1759973601104,1.69896781,122510.0,122500.0,5.0044]
[1759973601328,1.39053785,122510.0,122500.0,5.0044]
[1759973601534,1.40253785,122510.0,122500.0,5.0044]
[1759973601712,1.71857785,122510.0,122500.0,5.0044]
[1759973602067,1.72257785,122510.0,122500.0,5.0044]
[1759973602271,1.72257903,122510.0,122500.0,5.0044]
[1759973603132,1.40653903,122510.0,122500.0,5.0044]
[1759973603337,1.72257903,122510.0,122500.0,5.00592276]
[1759973604022,1.63762143,122510.0,122500.0,5.00592276]
[1759973604220,1.72254143,122510.0,122500.0,5.00592276]
[1759973605709,1.40654143,122510.0,122500.0,5.00592276]
[1759973605922,1.72256459,122510.0,122500.0,5.00592276]
[1759973608070,1.70748323,122510.0,122500.0,5.00592276]
[1759973608278,1.72257166,122510.0,122500.0,5.00592276]
[1759973609316,1.73996256,122510.0,122500.0,5.00592276]
[1759973609537,1.42396256,122510.0,122500.0,5.00592276]
[1759973609764,1.65500256,122510.0,122500.0,5.00592276]
[1759973609987,1.73992256,122510.0,122500.0,5.00592276]
[1759973610456,1.73238894,122510.0,122500.0,5.00592276]
[1759973610678,1.73993613,122510.0,122500.0,5.00592276]
[1759973612850,1.42397613,122510.0,122500.0,5.00592276]
[1759973613101,1.73989613,122510.0,122500.0,5.00592276]
[1759973613320,1.65497613,122510.0,122500.0,5.00592276]
[1759973613540,1.67627506,122510.0,122500.0,5.02230276]
[1759973613971,1.36035506,122510.0,122500.0,5.02230276]
[1759973614187,1.59139506,122510.0,122500.0,5.02230276]
[1759973614664,1.59139506,122510.0,122500.0,5.00592276]
[1759973615099,1.09313966,122510.0,122500.0,5.02230276]
[1759973615327,0.06315863,122510.0,122500.0,5.22060806]
[1759973615545,0.26043912,122510.0,122500.0,5.45168806]
[1759973615798,0.42369109,122510.0,122500.0,5.22060806]
[1759973616009,0.42369109,122510.0,122500.0,5.45168806]
[1759973616225,0.42369451,122510.0,122500.0,5.45168806]
[1759973616433,0.24444254,122510.0,122500.0,5.22060806]
[1759973616653,0.24444254,122510.0,122500.0,5.45168806]
[1759973616886,0.02663904,122510.0,122500.0,5.53168486]
[1759973617100,0.2218035,122530.0,122520.0,0.16323052]
[1759973617324,0.22950221,122530.0,122520.0,0.44754052]
[1759973617550,0.22950221,122530.0,122520.0,0.21642052]
[1759973617987,0.00769871,122530.0,122520.0,0.33953424]
[1759973618218,0.2219525,122530.0,122520.0,0.57069424]
[1759973618434,0.2219525,122530.0,122520.0,0.59520345]
[1759973618863,0.000149,122530.0,122520.0,0.59520345]
[1759973619566,0.009149,122530.0,122520.0,0.68012345]
[1759973619801,0.000149,122530.0,122520.0,0.36404345]
[1759973620010,0.000149,122530.0,122520.0,0.68008345]
[1759973620452,0.000149,122530.0,122520.0,0.64009179]
[1759973620662,0.008149,122530.0,122520.0,0.32505179]
[1759973620925,0.008149,122530.0,122520.0,0.64109179]
[1759973622664,0.008149,122530.0,122520.0,0.4104793]
[1759973622888,0.008149,122530.0,122520.0,0.3255593]
[1759973623114,0.008149,122530.0,122520.0,0.6415593]
[1759973623995,0.008149,122530.0,122520.0,0.6915593]
[1759973624224,0.008149,122530.0,122520.0,0.3755593]
[1759973624437,0.008149,122530.0,122520.0,0.6415193]
[1759973625074,0.2299525,122530.0,122520.0,0.6415193]
[1759973625288,0.008149,122530.0,122520.0,0.6415193]
[1759973625497,0.008149,122530.0,122520.0,0.3255593]
[1759973625708,0.008149,122530.0,122520.0,0.6415193]
[1759973627467,0.008149,122530.0,122520.0,0.3255593]
[1759973627692,0.008149,122530.0,122520.0,0.6414793]
[1759973628336,0.2299525,122530.0,122520.0,0.6414793]
[1759973629520,0.008149,122530.0,122520.0,0.6414793]
[1759973631350,0.2299525,122530.0,122520.0,0.6414793]
[1759973631970,0.008149,122530.0,122520.0,0.6414793]
[1759973632177,0.007149,122530.0,122520.0,0.48478393]
[1759973632581,0.007149,122530.0,122520.0,0.71570393]
[1759973632582,0.002149,122530.0,122520.0,0.71570393]
[1759973632779,0.002149,122530.0,122520.0,0.48478393]
[1759973632957,0.000149,122530.0,122520.0,0.71570393]
[1759973633374,0.003149,122530.0,122520.0,0.48478393]
[1759973633541,0.000149,122530.0,122520.0,0.71570393]
[1759973633967,0.003149,122530.0,122520.0,0.71570393]
[1759973634578,0.004149,122530.0,122520.0,0.71870393]
[1759973636838,0.004149,122530.0,122520.0,0.69419472]
[1759973637650,0.004149,122530.0,122520.0,0.53393009]
[1759973637856,0.004149,122530.0,122520.0,0.53569616]
[1759973637857,0.16737433,122530.0,122520.0,0.53569616]
[1759973638055,0.004149,122530.0,122520.0,0.53569616]
[1759973638509,0.004149,122530.0,122520.0,0.30481616]
[1759973639051,0.004149,122530.0,122520.0,0.58597616]
[1759973639455,0.004149,122530.0,122520.0,0.35481616]
[1759973639650,0.004149,122530.0,122520.0,0.58593616]
[1759973639897,0.004149,122530.0,122520.0,0.26993616]
[1759973640055,0.004149,122530.0,122520.0,0.58593616]
[1759973641166,0.16737433,122530.0,122520.0,0.58593616]
[1759973641779,0.16737433,122530.0,122520.0,0.10669751]
[1759973641983,0.38917783,122530.0,122520.0,0.58593616]
[1759973642852,0.38917783,122530.0,122520.0,0.58589616]
[1759973643257,0.61098133,122530.0,122520.0,0.10669751]
[1759973643604,0.63708133,122530.0,122520.0,0.31318751]
[1759973643725,0.6601315,122530.0,122520.0,0.26318751]
[1759973643921,0.2165245,122530.0,122520.0,0.26318751]
[1759973644168,0.5122061,122530.0,122520.0,0.26318751]
[1759973644382,0.5112061,122530.0,122520.0,0.26018751]
[1759973644616,0.5122061,122530.0,122520.0,0.26218751]
[1759973645447,0.5092061,122530.0,122520.0,0.26218751]
[1759973645796,0.5192061,122530.0,122520.0,0.26418751]
[1759973646406,0.2083645,122530.0,122520.0,0.28613751]
[1759973646659,0.5040461,122530.0,122520.0,0.28613751]
[1759973647418,0.4496461,122530.0,122520.0,0.28613751]
[1759973648098,0.41565593,122530.0,122520.0,0.31596126]
[1759973648343,0.41565593,122530.0,122520.0,0.28613751]
[1759973648557,0.17422533,122530.0,122520.0,0.21829616]
[1759973648781,0.17422533,122530.0,122520.0,0.44937616]
[1759973650032,0.17422533,122530.0,122520.0,0.28613751]
[1759973650265,0.17422533,122530.0,122520.0,0.05505751]
[1759973650516,0.17422533,122530.0,122520.0,0.30246137]
[1759973650724,0.17422533,122530.0,122520.0,0.28613751]
[1759973650933,0.46990693,122530.0,122520.0,0.05505751]
[1759973651142,0.46990693,122530.0,122520.0,0.30246137]
[1759973651350,0.46990693,122530.0,122520.0,0.28613751]
[1759973653644,0.17422533,122530.0,122520.0,0.44937616]
[1759973654068,0.17422533,122530.0,122520.0,0.28613751]
[1759973654269,0.011,122530.0,122520.0,0.21829616]
[1759973654550,0.011,122530.0,122520.0,0.44933616]
[1759973655047,0.011,122530.0,122520.0,0.21829616]
[1759973655252,0.011,122530.0,122520.0,0.53425616]
[1759973655863,0.011,122530.0,122520.0,0.60521684]
[1759973656415,0.011,122530.0,122520.0,0.65521684]
[1759973659107,0.17422533,122530.0,122520.0,0.10505751]
[1759973659306,0.17422533,122530.0,122520.0,0.58421616]
[1759973659513,0.48595693,122530.0,122520.0,0.08202751]
[1759973659713,0.94370899,122530.0,122520.0,0.00450751]
[1759973660062,0.94370899,122530.0,122520.0,0.23606751]
[1759973660295,0.94370899,122530.0,122520.0,0.00450751]
[1759973660497,1.49300076,122530.0,122520.0,0.00250751]
[1759973660698,1.49263449,122530.0,122520.0,1e-08]
[1759973660928,0.50325197,122510.0,122500.0,5.236]
[1759973661122,0.84897374,122510.0,122500.0,5.236]
[1759973661287,0.87266374,122510.0,122500.0,5.0044]
[1759973661492,0.9557858,122510.0,122500.0,5.0044]
[1759973661923,0.96332844,122510.0,122500.0,5.0044]
[1759973662363,0.98785025,122510.0,122500.0,5.0044]
[1759973662865,0.99485025,122510.0,122500.0,5.0044]
[1759973663071,1.21953025,122510.0,122500.0,5.0044]
[1759973663668,0.98785025,122510.0,122500.0,5.0044]
[1759973663895,1.25268215,122510.0,122500.0,5.0044]
[1759973664298,1.23608934,122510.0,122500.0,5.0044]
[1759973665345,1.25114138,122510.0,122500.0,5.0044]
[1759973665850,1.23608934,122510.0,122500.0,5.0044]
[1759973666258,1.23604934,122510.0,122500.0,5.0044]
[1759973666462,1.25109859,122510.0,122500.0,5.0044]
[1759973666837,1.25109859,122510.0,122500.0,5.00541521]
[1759973667031,1.23604934,122510.0,122500.0,5.00541521]
[1759973668479,0.96341791,122510.0,122500.0,5.00541521]
[1759973668698,1.25909951,122510.0,122500.0,5.00541521]
[1759973671624,0.96337791,122510.0,122500.0,5.00541521]
[1759973671845,1.25905951,122510.0,122500.0,5.00541521]
[1759973672268,0.96337791,122510.0,122500.0,5.00541521]
[1759973672454,1.25905951,122510.0,122500.0,5.00541521]
[1759973672935,1.02745951,122510.0,122500.0,5.00541521]
[1759973673166,1.18216744,122510.0,122500.0,5.02062521]
[1759973673372,0.86196403,122510.0,122500.0,5.02062521]
[1759973673578,1.15764563,122510.0,122500.0,5.02062521]
[1759973673783,0.86196403,122510.0,122500.0,5.25222521]
[1759973673992,0.90999563,122510.0,122500.0,5.03293521]
[1759973674200,0.89905563,122510.0,122500.0,5.28756521]
[1759973674579,0.89905563,122510.0,122500.0,5.05596521]
[1759973674808,0.89905563,122510.0,122500.0,5.28760521]
[1759973675644,0.55905563,122510.0,122500.0,5.28760521]
[1759973676751,0.89905563,122510.0,122500.0,5.28760521]
[1759973677686,0.91551563,122510.0,122500.0,5.00541521]
[1759973677899,0.81593357,122510.0,122500.0,5.28741521]
[1759973678534,0.81593357,122510.0,122500.0,5.45068051]
[1759973678762,0.017,122510.0,122500.0,5.21908051]
[1759973678974,0.017,122510.0,122500.0,5.45068051]
[1759973680650,0.18025197,122510.0,122500.0,5.45068051]
[1759973681272,0.47593357,122510.0,122500.0,5.05581521]
[1759973681677,0.49239357,122510.0,122500.0,5.00541521]
[1759973681876,0.51695357,122510.0,122500.0,5.23705521]
[1759973682081,0.49239357,122510.0,122500.0,5.25283521]
[1759973682403,0.49239357,122510.0,122500.0,5.02115521]
[1759973682798,0.49239357,122510.0,122500.0,5.25283521]
[1759973683004,0.49239357,122510.0,122500.0,5.02115521]
[1759973683209,0.49239357,122510.0,122500.0,5.23709521]
[1759973683861,0.21976214,122510.0,122500.0,5.25284521]
[1759973684071,0.51544374,122510.0,122500.0,5.02116521]
[1759973684282,0.22148197,122510.0,122500.0,5.00541521]
[1759973684527,0.51544374,122510.0,122500.0,5.25280521]
[1759973684741,0.49239357,122510.0,122500.0,5.25280521]
[1759973686040,0.49239357,122510.0,122500.0,5.23705521]
[1759973686284,1.1950158,122510.0,122500.0,5.00541521]
[1759973686959,1.1950158,122510.0,122500.0,5.23709521]
[1759973688286,1.2101027,122510.0,122500.0,5.23709521]
[1759973689387,1.21765216,122510.0,122500.0,5.23705521]
[1759973691312,0.98597216,122510.0,122500.0,5.23705521]
[1759973691524,0.98597216,122510.0,122500.0,5.25280521]
[1759973691525,0.96120216,122510.0,122500.0,5.25280521]
[1759973691764,0.81593357,122510.0,122500.0,5.05635521]
[1759973691994,0.81593357,122510.0,122500.0,5.28799521]
[1759973693132,0.81593357,122510.0,122500.0,5.05635521]
[1759973693362,0.017,122510.0,122500.0,5.09596919]
[1759973693579,0.18025197,122510.0,122500.0,5.45126051]
[1759973694205,0.47593357,122510.0,122500.0,5.45126051]
[1759973694790,0.017,122510.0,122500.0,5.21962051]
[1759973694995,0.017,122510.0,122500.0,5.30454051]
[1759973695197,0.017,122510.0,122500.0,5.53618051]
[1759973695433,0.017,122510.0,122500.0,5.60544788]
[1759973695864,0.017,122510.0,122500.0,5.53618051]
[1759973696991,0.017,122510.0,122500.0,5.30454051]
[1759973697204,0.017,122510.0,122500.0,5.38766257]
[1759973697627,0.017,122510.0,122500.0,5.61930257]
[1759973697831,0.014,122510.0,122500.0,5.61930257]
[1759973698039,0.014,122510.0,122500.0,5.69929937]
[1759973698262,0.80025222,122540.0,122530.0,0.16322533]
[1759973698476,0.80037465,122540.0,122530.0,0.29890253]
[1759973698686,0.80037465,122540.0,122530.0,0.28258]
[1759973699109,0.50469305,122540.0,122530.0,0.28258]
[1759973699313,0.80037465,122540.0,122530.0,0.28258]
[1759973700202,0.50469305,122540.0,122530.0,0.09667687]
[1759973700429,0.80037465,122540.0,122530.0,0.29890253]
[1759973700616,0.81737465,122540.0,122530.0,0.44580533]
[1759973700862,0.81737465,122540.0,122530.0,0.28254]
[1759973701043,0.82037465,122540.0,122530.0,0.05194]
[1759973701243,0.82037465,122540.0,122530.0,0.28354]
[1759973701686,0.82037465,122540.0,122530.0,0.05194]
[1759973701899,0.87150465,122540.0,122530.0,0.001]
[1759973702117,0.95462671,122540.0,122530.0,0.001]
[1759973702347,0.95462671,122540.0,122530.0,0.12072]
[1759973702792,0.98477861,122540.0,122530.0,0.001]
[1759973703015,1.51206021,122540.0,122530.0,0.001]
[1759973703229,1.31105692,122540.0,122530.0,0.001]
[1759973703465,1.54281708,122540.0,122530.0,0.001]
[1759973703667,1.28800691,122540.0,122530.0,0.001]
[1759973703874,0.92840371,122540.0,122530.0,0.001]
[1759973704089,1.24346528,122540.0,122530.0,0.001]
[1759973704547,1.23591858,122540.0,122530.0,0.001]
[1759973704769,1.00415858,122540.0,122530.0,0.001]
[1759973704988,0.94923668,122540.0,122530.0,0.001]
[1759973705205,0.94923668,122540.0,122530.0,0.0283]
[1759973708619,0.94894668,122540.0,122530.0,0.0283]
[1759973712069,0.97141668,122540.0,122530.0,0.001]
[1759973714134,0.94873668,122540.0,122530.0,0.001]
[1759973714356,0.94873668,122540.0,122530.0,0.02959]
[1759973714568,0.93331668,122540.0,122530.0,0.05288]
[1759973714997,0.94973668,122540.0,122530.0,0.02959]
[1759973715635,0.94968668,122540.0,122530.0,0.02959]
[1759973716294,0.52469226,122540.0,122530.0,0.059197]
[1759973716521,0.83975383,122540.0,122530.0,0.44770533]
[1759973716747,0.83975383,122540.0,122530.0,0.28448]
[1759973716959,0.83975383,122540.0,122530.0,0.46770533]
[1759973717376,0.83975383,122540.0,122530.0,0.30448]
[1759973718410,0.83975383,122540.0,122530.0,0.46770533]
[1759973720042,0.83970383,122540.0,122530.0,0.46770533]
[1759973720274,0.83970383,122540.0,122530.0,0.54044555]
[1759973720450,0.52464226,122540.0,122530.0,0.54044555]
[1759973720649,0.83970383,122540.0,122530.0,0.54044555]
[1759973720987,0.49970383,122540.0,122530.0,0.54044555]
[1759973721411,0.83970383,122540.0,122530.0,0.54044555]
[1759973721783,0.02143025,122540.0,122530.0,0.46770533]
[1759973721989,0.18464226,122540.0,122530.0,0.46770533]
[1759973722506,0.02143025,122540.0,122530.0,0.23610533]
[1759973722721,0.02143025,122540.0,122530.0,0.46762533]
[1759973722942,0.02143025,122540.0,122530.0,0.23610533]
[1759973723286,0.02143025,122540.0,122530.0,0.59363355]
[1759973723692,0.00143025,122540.0,122530.0,0.59263355]
[1759973723893,0.00243025,122540.0,122530.0,0.59263355]
[1759973724095,0.01243025,122540.0,122530.0,0.59263355]
[1759973724847,0.01243025,122540.0,122530.0,0.23510533]
[1759973725067,0.32749182,122540.0,122530.0,0.55154533]
[1759973725311,0.32749182,122540.0,122530.0,0.07188]
[1759973725312,0.49070383,122540.0,122530.0,0.07188]
[1759973725472,0.49070383,122540.0,122530.0,0.30336]
[1759973725658,0.49070383,122540.0,122530.0,0.23510533]
[1759973726009,0.61903386,122540.0,122530.0,0.46666533]
[1759973726300,0.00243025,122540.0,122530.0,0.24637037]